bitfinex/quotes_BTCUSD_20240719
["timestamp","ask_amount","ask_price","bid_price","bid_amount"]
[1721406986847,0.52815191,66537.0,66536.0,0.450883]
[1721406987079,0.52815191,66537.0,66534.0,0.150297]
[1721406987277,0.52815191,66537.0,66527.0,0.386229]
[1721406987278,0.02515191,66536.0,66523.0,0.0836]
[1721406987522,0.002794,66534.0,66526.0,0.150315]
[1721406988662,0.02794591,66530.0,66515.0,0.150341]
[1721406988797,0.02794591,66530.0,66516.0,0.150339]
[1721406988798,0.0281439,66529.0,66516.0,0.150339]
[1721406989002,0.02801314,66528.0,66526.0,0.001]
[1721406989200,0.02521914,66527.0,66526.0,0.001]
[1721406989584,0.02521914,66533.0,66516.0,0.150339]
[1721406989827,0.18531964,66532.0,66513.0,0.30069]
[1721406990025,0.004,66529.0,66515.0,0.150341]
[1721406990237,0.0309379,66528.0,66515.0,0.150341]
[1721406990440,0.02521914,66527.0,66515.0,0.150341]
[1721406990664,0.00571876,66526.0,66515.0,0.150341]
[1721406990849,0.183,66524.0,66515.0,0.150341]
[1721406991066,0.183,66524.0,66506.0,0.0836]
[1721406991067,0.02521914,66523.0,66508.0,0.445957]
[1721406991313,0.02521914,66523.0,66503.0,0.62072809]
[1721406991314,0.00292476,66522.0,66504.0,0.150365]
[1721406991530,0.02801314,66521.0,66504.0,0.150365]
[1721406991731,0.02801314,66521.0,66503.0,0.52142809]
[1721406991732,0.0281439,66520.0,66503.0,0.52142809]
[1721406991925,0.02808568,66519.0,66503.0,0.52142809]
[1721406992100,0.02821644,66518.0,66504.0,0.150366]
[1721406992304,0.02808568,66517.0,66504.0,0.150366]
[1721406992508,0.02808568,66517.0,66505.0,0.150364]
[1721406992509,0.02529168,66516.0,66505.0,0.150364]
[1721406992770,0.002794,66515.0,66504.0,0.150366]
[1721406992995,0.002794,66515.0,66505.0,0.150364]
[1721406993199,0.002794,66519.0,66508.0,0.2956]
[1721406993399,0.002794,66519.0,66508.0,0.37277479]
[1721406993622,0.002794,66519.0,66515.0,0.07717479]
[1721406993824,0.001,66520.0,66519.0,0.150332]
[1721406994044,0.001,66520.0,66519.0,0.450997]
[1721406994244,0.001,66520.0,66519.0,0.751662]
[1721406994808,0.001,66520.0,66519.0,1.20670874]
[1721406995951,0.01526227,66521.0,66520.0,0.751652]
[1721406996153,0.002794,66536.0,66524.0,0.15032]
[1721406996358,0.02521906,66535.0,66525.0,0.150319]
[1721406996693,0.02521906,66535.0,66520.0,0.45504274]
[1721406996817,0.02521906,66535.0,66523.0,0.300647]
[1721406996818,0.002794,66534.0,66523.0,0.300647]
[1721406997053,0.02521906,66533.0,66525.0,0.150317]
[1721406997254,0.02521906,66533.0,66526.0,0.150316]
[1721406997529,0.02521906,66532.0,66526.0,0.150316]
[1721406997646,0.51500716,66537.0,66526.0,0.150316]
[1721406997852,0.02525767,66536.0,66525.0,0.2956]
[1721406998049,0.002794,66535.0,66531.0,0.150304]
[1721406998381,0.002794,66535.0,66525.0,0.2956]
[1721406998382,0.02525732,66534.0,66530.0,0.150307]
[1721406998554,0.002794,66533.0,66529.0,0.150309]
[1721406998707,0.003,66534.0,66525.0,0.37277479]
[1721406998912,0.003,66534.0,66533.0,0.87867979]
[1721406999171,0.51500716,66537.0,66536.0,0.801472]
[1721406999385,0.51500716,66537.0,66536.0,2.1679001]
[1721406999604,0.51500716,66537.0,66536.0,2.50103247]
[1721406999963,0.51500716,66537.0,66536.0,2.58900263]
[1721407000170,0.51500716,66537.0,66536.0,1.69294274]
[1721407000933,0.51500716,66537.0,66536.0,2.04243174]
[1721407001137,0.51500716,66537.0,66536.0,2.04193174]
[1721407001341,0.51500716,66537.0,66536.0,1.74134274]
[1721407001743,0.51500716,66537.0,66536.0,1.74114274]
[1721407001945,0.51600716,66537.0,66536.0,1.74414274]
[1721407002264,0.51500716,66537.0,66536.0,1.74114274]
[1721407002455,0.51600716,66537.0,66536.0,1.74614274]
[1721407002994,0.51700716,66537.0,66536.0,1.75114274]
[1721407003201,0.51600716,66537.0,66536.0,1.74614274]
[1721407003360,0.51700716,66537.0,66536.0,2.04673174]
[1721407003726,0.51800716,66537.0,66536.0,2.05173174]
[1721407003901,0.51800716,66537.0,66536.0,1.79005483]
[1721407003902,0.51700716,66537.0,66536.0,1.79005483]
[1721407004109,0.51700716,66537.0,66536.0,1.74614274]
[1721407004269,0.51800716,66537.0,66536.0,1.75114274]
[1721407004480,0.51800716,66537.0,66536.0,1.70204274]
[1721407004686,0.51784716,66537.0,66536.0,1.69704274]
[1721407005092,0.51884716,66537.0,66536.0,1.70004274]
[1721407006054,0.51884716,66537.0,66536.0,1.50884274]
[1721407007435,0.51684716,66537.0,66536.0,0.447694]
[1721407007659,0.51684716,66537.0,66536.0,0.748283]
[1721407007887,0.51784716,66537.0,66536.0,0.752283]
[1721407008603,0.51784716,66537.0,66536.0,1.350461]
[1721407008604,0.51684716,66537.0,66536.0,1.350461]
[1721407008746,0.51684716,66537.0,66536.0,1.50484274]
[1721407008946,0.51784716,66537.0,66536.0,1.50784274]
[1721407009156,0.51684716,66537.0,66536.0,1.048872]
[1721407009340,0.51584716,66537.0,66536.0,1.048872]
[1721407009536,0.51684716,66537.0,66536.0,1.048872]
[1721407009753,0.51784716,66537.0,66536.0,1.048872]
[1721407009955,0.51784716,66537.0,66536.0,0.750283]
[1721407009956,0.51884716,66537.0,66536.0,0.750283]
[1721407010160,0.51884716,66537.0,66536.0,0.005]
[1721407010365,0.51684716,66537.0,66533.0,0.1503]
[1721407010697,0.51784716,66537.0,66536.0,0.002]
[1721407011484,0.0009,66536.0,66527.0,0.150314]
[1721407011687,0.0009,66536.0,66524.0,0.300641]
[1721407011688,0.002794,66536.0,66528.0,0.150312]
[1721407011886,0.002794,66536.0,66526.0,0.300632]
[1721407012087,0.003694,66536.0,66527.0,0.150314]
[1721407012269,0.0009,66534.0,66527.0,0.150314]
[1721407012469,0.002794,66533.0,66526.0,0.300631]
[1721407012694,0.002794,66533.0,66528.0,0.003]
[1721407012892,0.0009,66536.0,66533.0,0.003]
[1721407013095,0.002794,66535.0,66533.0,0.003]
[1721407013444,0.002794,66535.0,66528.0,0.150312]
[1721407013692,0.70424716,66537.0,66528.0,0.150312]
[1721407013693,0.011,66534.0,66528.0,0.150312]
[1721407014001,0.005,66534.0,66528.0,0.150312]
[1721407014118,0.005,66534.0,66527.0,0.300627]
[1721407014322,0.005,66534.0,66530.0,0.150307]
[1721407014517,0.002794,66533.0,66530.0,0.150307]
[1721407014713,0.70324716,66537.0,66530.0,0.150307]
[1721407015124,0.01,66535.0,66530.0,0.300615]
[1721407015326,0.01,66535.0,66533.0,0.1503]
[1721407015531,0.01,66535.0,66534.0,0.450897]
[1721407015816,0.51584716,66537.0,66534.0,0.450897]
[1721407015965,0.51584716,66537.0,66534.0,0.150299]
[1721407016166,0.51584716,66537.0,66533.0,0.1503]
[1721407016368,0.51584716,66537.0,66532.0,0.150303]
[1721407016573,0.006,66535.0,66528.0,0.2956]
[1721407016774,0.002794,66534.0,66528.0,0.445912]
[1721407016979,0.0009,66536.0,66528.0,0.445912]
[1721407017180,0.0009,66534.0,66528.0,0.2956]
[1721407017408,0.52384716,66537.0,66519.0,0.1867]
[1721407017409,0.0987,66529.0,66520.0,0.81702809]
[1721407017610,0.0009,66526.0,66515.0,0.000924]
[1721407017941,0.0009,66523.0,66514.0,0.150343]
[1721407018164,0.00571876,66528.0,66510.0,0.46304871]
[1721407018165,0.1797,66524.0,66510.0,0.46304871]
[1721407018368,0.1797,66524.0,66516.0,0.2365]
[1721407018578,0.0987,66524.0,66516.0,0.2365]
[1721407018785,0.095848,66528.0,66523.0,0.2365]
[1721407018955,0.014848,66528.0,66523.0,0.2365]
[1721407019167,0.002794,66532.0,66527.0,0.150314]
[1721407019370,0.002794,66532.0,66531.0,0.2365]
[1721407019570,0.005,66534.0,66531.0,0.2365]
[1721407020446,0.01507429,66535.0,66532.0,0.150303]
[1721407020447,0.002794,66533.0,66532.0,0.150303]
[1721407020647,0.01507429,66535.0,66531.0,0.2365]
[1721407020848,0.005,66534.0,66532.0,0.150303]
[1721407021066,0.005,66534.0,66531.0,0.2365]
[1721407021266,0.005,66534.0,66531.0,0.537111]
[1721407021468,0.005,66534.0,66531.0,0.3197]
[1721407021671,0.005,66534.0,66531.0,0.386804]
[1721407021851,0.005,66534.0,66533.0,0.150301]
[1721407022059,0.005,66534.0,66533.0,0.60528474]
[1721407022292,0.005,66534.0,66533.0,0.31498187]
[1721407022462,0.02007429,66535.0,66534.0,0.150299]
[1721407022463,0.01507429,66535.0,66534.0,0.150299]
[1721407022684,0.01507429,66535.0,66534.0,0.30468074]
[1721407023042,0.01507429,66535.0,66534.0,0.01028844]
[1721407023460,0.02107429,66535.0,66531.0,0.2365]
[1721407023667,0.01507429,66535.0,66534.0,0.01028844]
[1721407023874,0.01507429,66535.0,66532.0,0.150302]
[1721407024117,0.02107429,66535.0,66534.0,0.01028844]
[1721407024373,0.01507429,66535.0,66534.0,0.2365]
[1721407024575,0.01507429,66535.0,66534.0,0.24678844]
[1721407024576,0.02007429,66535.0,66534.0,0.24678844]
[1721407024781,0.02007429,66535.0,66534.0,0.2365]
[1721407024994,0.02007429,66535.0,66534.0,0.24678844]
[1721407025127,0.02007429,66535.0,66534.0,0.01028844]
[1721407025323,0.02007429,66535.0,66530.0,0.150308]
[1721407025528,0.02007429,66535.0,66523.0,0.52142809]
[1721407025529,0.0009,66526.0,66523.0,0.52142809]
[1721407025864,0.0009,66526.0,66513.0,0.06584796]
[1721407025865,0.0009,66528.0,66513.0,0.2365]
[1721407026046,0.002794,66527.0,66513.0,0.2365]
[1721407026245,0.0009,66523.0,66513.0,0.2365]
[1721407026427,0.00071905,66522.0,66513.0,0.2365]
[1721407026834,0.00071905,66523.0,66513.0,0.2365]
[1721407027409,0.00071905,66524.0,66513.0,0.2365]
[1721407027615,0.00351305,66523.0,66513.0,0.2365]
[1721407027741,0.00292476,66526.0,66513.0,0.2365]
[1721407027742,0.1879,66521.0,66513.0,0.2365]
[1721407027954,0.00071905,66517.0,66513.0,0.22582878]
[1721407028150,0.00071905,66517.0,66502.0,0.386141]
[1721407028151,0.00071905,66517.0,66507.0,0.2365]
[1721407028399,0.00351305,66516.0,66507.0,0.2365]
[1721407028654,0.002794,66516.0,66507.0,0.2365]
[1721407029045,0.002794,66516.0,66508.0,0.01057329]
[1721407029399,0.009,66517.0,66514.0,0.2365]
[1721407029818,0.009,66517.0,66515.0,0.0104984]
[1721407030539,0.00071905,66517.0,66515.0,0.0104984]
[1721407030752,0.013,66516.0,66515.0,0.0104984]
[1721407031161,0.013,66516.0,66515.0,0.38835719]
[1721407031162,0.006,66516.0,66515.0,0.38835719]
[1721407031359,0.0825,66533.0,66515.0,0.32735493]
[1721407031568,0.008,66517.0,66516.0,1.00836586]
[1721407031793,0.000752,66535.0,66516.0,1.00836586]
[1721407031794,0.000752,66535.0,66517.0,0.09928095]
[1721407031991,0.01544051,66535.0,66534.0,0.2365]
[1721407032197,0.000752,66535.0,66534.0,0.2365]
[1721407032375,0.000752,66535.0,66534.0,0.24680227]
[1721407033400,0.000752,66535.0,66534.0,0.39710127]
[1721407033605,0.000752,66535.0,66534.0,0.39810127]
[1721407033841,0.000752,66535.0,66534.0,0.69869927]
[1721407034048,0.000752,66535.0,66534.0,1.15267901]
[1721407034212,0.001752,66535.0,66534.0,1.15767901]
[1721407035090,0.001752,66535.0,66534.0,1.15367901]
[1721407035293,0.001752,66535.0,66534.0,1.45427701]
[1721407035497,0.002752,66535.0,66534.0,1.46127701]
[1721407035689,0.002752,66535.0,66534.0,1.16067901]
[1721407035892,0.001752,66535.0,66534.0,1.15967901]
[1721407036229,0.002752,66535.0,66534.0,1.16667901]
[1721407036412,0.002752,66535.0,66534.0,1.46727701]
[1721407036615,0.002752,66535.0,66534.0,1.25227901]
[1721407036835,0.002752,66535.0,66534.0,1.41637701]
[1721407037050,0.002752,66535.0,66534.0,1.54113788]
[1721407037249,0.002752,66535.0,66534.0,1.41637701]
[1721407037457,0.001752,66535.0,66534.0,1.40937701]
[1721407037656,0.002592,66535.0,66534.0,1.40937701]
[1721407038017,0.003592,66535.0,66534.0,1.41737701]
[1721407038357,0.002592,66535.0,66534.0,1.40937701]
[1721407038784,0.00184,66535.0,66534.0,1.40937701]
[1721407038983,0.00084,66535.0,66534.0,1.40237701]
[1721407039211,0.00184,66535.0,66534.0,1.41437701]
[1721407039402,0.00284,66535.0,66534.0,1.42837701]
[1721407040471,0.00284,66535.0,66534.0,1.12777901]
[1721407040737,0.00284,66535.0,66534.0,0.03630227]
[1721407042189,0.00284,66535.0,66534.0,0.64458675]
[1721407042400,0.00284,66535.0,66534.0,0.94217901]
[1721407042593,0.00284,66535.0,66534.0,1.24277701]
[1721407042953,0.00284,66535.0,66534.0,0.94217901]
[1721407043528,0.00284,66535.0,66534.0,0.34098301]
[1721407043960,0.00284,66535.0,66534.0,0.94217901]
[1721407044360,0.00284,66535.0,66534.0,1.24277701]
[1721407046459,0.00284,66535.0,66534.0,1.42767701]
[1721407046653,0.51518186,66537.0,66536.0,0.150294]
[1721407046886,0.51518186,66537.0,66536.0,1.14235374]
[1721407047078,0.51518186,66537.0,66536.0,1.15261607]
[1721407047351,0.51518186,66537.0,66536.0,1.50248602]
[1721407047636,0.51518186,66537.0,66536.0,1.45320507]
[1721407047792,0.51518186,66537.0,66536.0,1.46320507]
[1721407047793,0.51618186,66537.0,66536.0,1.46320507]
[1721407049010,0.51618186,66537.0,66536.0,1.47420507]
[1721407049011,0.51718186,66537.0,66536.0,1.47420507]
[1721407049640,0.51718186,66537.0,66536.0,0.57243807]
[1721407049844,0.51718186,66537.0,66536.0,0.87302707]
[1721407051242,0.51718186,66537.0,66536.0,1.17361607]
[1721407054259,0.51718186,66537.0,66536.0,0.87302707]
[1721407057558,0.51718186,66537.0,66536.0,0.26776233]
[1721407062110,0.51718186,66537.0,66536.0,0.57243807]
[1721407062467,0.51718186,66537.0,66536.0,0.87302707]
[1721407064059,0.51718186,66537.0,66536.0,0.87227507]
[1721407064265,0.51718186,66537.0,66536.0,1.17286407]
[1721407064667,0.51718186,66537.0,66536.0,1.29291356]
[1721407065473,0.51718186,66537.0,66536.0,1.17286407]
[1721407065634,0.51718186,66537.0,66536.0,1.29293812]
[1721407068697,0.51718186,66537.0,66536.0,1.29299072]
[1721407069073,0.51718186,66537.0,66536.0,1.17286407]
[1721407069244,0.51718186,66537.0,66536.0,1.29298875]
[1721407071738,0.51718186,66537.0,66536.0,1.29285043]
[1721407071940,0.51718186,66537.0,66536.0,1.29285212]
[1721407072147,0.51718186,66537.0,66536.0,1.29377612]
[1721407074804,0.51718186,66537.0,66536.0,0.15217438]
[1721407075022,0.51718186,66537.0,66536.0,0.03218633]
[1721407077373,0.51718186,66537.0,66536.0,0.07622078]
[1721407078153,0.51718186,66537.0,66536.0,0.03218633]
[1721407078724,0.51718186,66537.0,66536.0,0.07628758]
[1721407078920,0.51618186,66537.0,66536.0,0.06528758]
[1721407079545,0.51518186,66537.0,66536.0,0.05528758]
[1721407079743,0.51518186,66537.0,66536.0,0.01618633]
[1721407079961,0.51518186,66537.0,66536.0,0.02118633]
[1721407080399,0.51518186,66537.0,66536.0,0.01618633]
[1721407080764,0.00071905,66532.0,66530.0,0.03288794]
[1721407080961,0.00071905,66532.0,66524.0,0.2365]
[1721407080962,0.00071905,66530.0,66524.0,0.2365]
[1721407081201,0.1036,66527.0,66517.0,0.2365]
[1721407081392,0.02535664,66526.0,66518.0,0.39348356]
[1721407081591,0.02535664,66526.0,66518.0,0.21458774]
[1721407081822,0.02535664,66526.0,66517.0,0.2365]
[1721407081823,0.02607569,66526.0,66517.0,0.2365]
[1721407082029,0.02535664,66525.0,66517.0,0.39088174]
[1721407082373,0.02555727,66524.0,66517.0,0.39088174]
[1721407082551,0.00071905,66526.0,66517.0,0.39088174]
[1721407082767,0.1036,66527.0,66517.0,0.39088174]
[1721407082768,0.10431905,66527.0,66517.0,0.39088174]
[1721407082964,0.02555739,66526.0,66517.0,0.39088174]
[1721407083382,0.001,66525.0,66518.0,0.23456286]
[1721407083585,0.001,66525.0,66524.0,0.2365]
[1721407083726,0.001,66525.0,66524.0,0.54120274]
[1721407083925,0.01410455,66532.0,66526.0,0.150316]
[1721407084157,0.00071905,66536.0,66531.0,0.2365]
[1721407084318,0.00071905,66534.0,66531.0,0.2365]
[1721407084686,0.02556293,66533.0,66531.0,0.2365]
[1721407084887,0.02556321,66532.0,66531.0,0.2365]
[1721407085058,0.02556321,66535.0,66531.0,0.2365]
[1721407085297,0.59934825,66537.0,66523.0,0.50961497]
[1721407085298,0.02628226,66534.0,66523.0,0.50961497]
[1721407085470,0.001,66526.0,66523.0,0.50961497]
[1721407085874,0.1048,66527.0,66523.0,0.50961497]
[1721407086075,0.00071905,66524.0,66523.0,0.43414056]
[1721407086288,0.00071905,66524.0,66523.0,0.41014056]
[1721407087076,0.001,66525.0,66523.0,0.41714056]
[1721407087285,0.002794,66524.0,66523.0,0.41714056]
[1721407087686,0.002794,66524.0,66523.0,0.013]
[1721407088385,0.002794,66524.0,66523.0,0.006]
[1721407088584,0.001,66525.0,66523.0,0.006]
[1721407088853,0.001,66524.0,66523.0,0.017]
[1721407089204,0.001,66524.0,66523.0,0.011]
[1721407089405,0.1048,66527.0,66521.0,0.2365]
[1721407089827,0.001,66525.0,66523.0,0.01]
[1721407090234,0.1048,66527.0,66521.0,0.2365]
[1721407090917,0.001,66524.0,66523.0,0.01]
[1721407091121,0.001,66524.0,66523.0,0.31470374]
[1721407091526,0.001,66524.0,66523.0,0.16438174]
[1721407091844,0.001,66524.0,66523.0,0.61535174]
[1721407092484,0.01411697,66527.0,66526.0,0.450951]
[1721407092687,0.001,66527.0,66526.0,0.60533274]
[1721407093116,0.00071905,66536.0,66528.0,0.150312]
[1721407093374,0.0148024,66536.0,66528.0,0.30469374]
[1721407093580,0.00071905,66535.0,66528.0,0.15438174]
[1721407094210,0.00071905,66528.0,66526.0,0.006]
[1721407094518,0.1061,66528.0,66522.0,0.300649]
[1721407094727,0.001,66527.0,66526.0,0.007]
[1721407095304,0.1061,66534.0,66523.0,0.15438174]
[1721407095610,0.1061,66534.0,66526.0,0.006]
[1721407095611,0.001,66528.0,66526.0,0.006]
[1721407096004,0.004,66535.0,66529.0,0.15031]
[1721407096529,0.00071905,66538.0,66528.0,0.150311]
[1721407096747,0.02549054,66536.0,66528.0,0.30469274]
[1721407096948,0.02620959,66536.0,66528.0,0.30469274]
[1721407097150,0.02549121,66535.0,66528.0,0.30469274]
[1721407097350,0.02549121,66535.0,66528.0,0.15438174]
[1721407097351,0.00071905,66534.0,66528.0,0.15438174]
[1721407097576,0.00471905,66535.0,66528.0,0.15438174]
[1721407097757,0.1826,66539.0,66528.0,0.15438174]
[1721407097758,0.02623624,66534.0,66528.0,0.15438174]
[1721407097988,0.00071905,66532.0,66521.0,0.48824056]
[1721407098187,0.002794,66533.0,66522.0,0.15438174]
[1721407098389,0.002794,66533.0,66524.0,0.150321]
[1721407098748,0.00071905,66534.0,66524.0,0.30470274]
[1721407099093,0.00071905,66532.0,66524.0,0.15438174]
[1721407099296,0.00171905,66534.0,66524.0,0.30470274]
[1721407099475,0.00071905,66533.0,66524.0,0.15438174]
[1721407099677,0.00071905,66532.0,66524.0,0.15438174]
[1721407099880,0.00171905,66533.0,66524.0,0.15438174]
[1721407100115,0.00071905,66530.0,66524.0,0.15438174]
[1721407100312,0.00071905,66532.0,66524.0,0.15438174]
[1721407100488,0.001,66533.0,66524.0,0.15438174]
[1721407100689,0.00171905,66534.0,66524.0,0.15438174]
[1721407100890,0.00171905,66534.0,66525.0,0.0001809]
[1721407101094,0.00071905,66532.0,66525.0,0.0001809]
[1721407101295,0.00071905,66533.0,66525.0,0.0001809]
[1721407101498,0.00071905,66534.0,66525.0,0.0001809]
[1721407101719,0.02617523,66533.0,66525.0,0.0001809]
[1721407102032,0.00071905,66533.0,66525.0,0.0001809]
[1721407102395,0.00071905,66534.0,66525.0,0.0031809]
[1721407102600,0.02547011,66533.0,66525.0,0.0031809]
[1721407102801,0.02547011,66533.0,66525.0,0.0001809]
[1721407103013,0.00071905,66528.0,66525.0,0.0001809]
[1721407103211,0.00071905,66529.0,66525.0,0.002]
[1721407103414,0.1863,66528.0,66525.0,0.003]
[1721407103625,0.00071905,66521.0,66520.0,0.0001809]
[1721407103824,0.00071905,66518.0,66505.0,0.1009]
[1721407104047,0.00071905,66516.0,66505.0,0.25528174]
[1721407104607,0.00071905,66516.0,66505.0,0.15438174]
[1721407105387,0.02551935,66515.0,66503.0,0.0796]
[1721407105681,0.002794,66515.0,66505.0,0.013]
[1721407105843,0.00171905,66516.0,66505.0,0.013]
[1721407106047,0.00071905,66516.0,66503.0,0.23398174]
[1721407106228,0.1888,66519.0,66508.0,0.07717479]
[1721407106410,0.006,66516.0,66508.0,0.07717479]
[1721407106814,0.005,66516.0,66508.0,0.07717479]
[1721407107282,0.013,66516.0,66508.0,0.07717479]
[1721407107428,0.005,66516.0,66506.0,0.386862]
[1721407107828,0.005,66516.0,66508.0,0.001]
[1721407108051,0.00071905,66515.0,66508.0,0.001]
[1721407108252,0.00071905,66515.0,66506.0,0.2365]
[1721407108480,0.00071905,66515.0,66503.0,0.151369]
[1721407108481,0.00071905,66512.0,66503.0,0.001]
[1721407108684,0.00071905,66510.0,66501.0,0.150373]
[1721407108846,0.00071905,66512.0,66502.0,0.15438174]
[1721407109699,0.00071905,66512.0,66503.0,0.001]
[1721407110103,0.00071905,66513.0,66503.0,0.001]
[1721407110316,0.00071905,66508.0,66503.0,0.001]
[1721407110630,0.00071905,66506.0,66503.0,0.001]
[1721407111217,0.00292476,66513.0,66503.0,0.001]
[1721407111218,0.00071905,66504.0,66503.0,0.001]
[1721407111416,0.1835,66505.0,66503.0,0.001]
[1721407111836,0.1835,66505.0,66494.0,0.1]
[1721407112135,0.00071905,66503.0,66502.0,0.001]
[1721407112573,0.00071905,66503.0,66493.0,0.33062426]
[1721407112574,0.00071905,66494.0,66493.0,0.33062426]
[1721407112796,0.00071905,66494.0,66493.0,0.25333692]
[1721407113017,0.00071905,66489.0,66488.0,0.009185]
[1721407113214,0.18391905,66489.0,66488.0,0.009185]
[1721407113738,0.18391905,66489.0,66482.0,0.000924]
[1721407113739,0.00071905,66483.0,66482.0,0.000924]
[1721407113962,0.00071905,66482.0,66474.0,0.16549172]
[1721407114164,0.00071905,66478.0,66474.0,0.009196]
[1721407114442,0.00071905,66480.0,66474.0,0.009196]
[1721407114825,0.00071905,66479.0,66474.0,0.009196]
[1721407115030,0.18541905,66481.0,66474.0,0.009196]
[1721407115243,0.00071905,66478.0,66474.0,0.009196]
[1721407115460,0.1847,66481.0,66474.0,0.009196]
[1721407115461,0.00071905,66477.0,66474.0,0.009196]
[1721407115861,0.1847,66481.0,66474.0,0.009196]
[1721407115862,0.00071905,66476.0,66474.0,0.009196]
[1721407116009,0.00071905,66475.0,66474.0,0.009196]
[1721407116631,0.003,66478.0,66465.0,0.10948]
[1721407116835,0.002794,66477.0,66465.0,0.10948]
[1721407117035,0.002794,66477.0,66464.0,0.009196]
[1721407117036,0.00592476,66476.0,66464.0,0.009196]
[1721407117462,0.15717574,66475.0,66464.0,0.009196]
[1721407117640,0.0863,66472.0,66458.0,0.009207]
[1721407118014,0.1601005,66471.0,66458.0,0.009207]
[1721407118194,0.002794,66471.0,66459.0,0.62043986]
[1721407118396,0.002794,66471.0,66459.0,0.30484874]
[1721407118607,0.002794,66469.0,66458.0,0.009207]
[1721407118806,0.00292476,66469.0,66458.0,0.002707]
[1721407119009,0.00292476,66469.0,66450.0,0.2365]
[1721407119010,0.002794,66468.0,66452.0,0.150483]
[1721407119212,0.002794,66468.0,66451.0,0.150486]
[1721407119213,0.002794,66466.0,66451.0,0.150486]
[1721407119462,0.002794,66466.0,66452.0,0.145883]
[1721407119654,0.025794,66466.0,66452.0,0.145883]
[1721407120036,0.025794,66466.0,66451.0,0.150486]
[1721407120260,0.025794,66466.0,66450.0,0.528482]
[1721407120479,0.025794,66466.0,66451.0,0.150485]
[1721407120679,0.028794,66466.0,66451.0,0.150485]
[1721407121175,0.025794,66466.0,66458.0,0.001]
[1721407121389,0.001,66466.0,66459.0,0.23155653]
[1721407121591,0.001,66466.0,66456.0,0.2365]
[1721407121731,0.004,66466.0,66450.0,0.2365]
[1721407121936,0.004,66466.0,66452.0,0.150484]
[1721407122335,0.005,66466.0,66452.0,0.150484]
[1721407122543,0.002,66466.0,66452.0,0.150484]
[1721407122884,0.002,66466.0,66450.0,0.150488]
[1721407122885,0.1857,66464.0,66450.0,0.150488]
[1721407123126,0.02592476,66463.0,66444.0,0.15629572]
[1721407123332,0.002794,66462.0,66444.0,0.15629572]
[1721407123486,0.00292476,66461.0,66446.0,0.150497]
[1721407123691,0.00292476,66461.0,66444.0,0.45729972]
[1721407123692,0.025794,66460.0,66445.0,0.150499]
[1721407123920,0.00292476,66459.0,66452.0,0.004]
[1721407124080,0.023,66458.0,66452.0,0.004]
[1721407124289,0.023,66458.0,66447.0,0.150495]
[1721407124497,0.024,66462.0,66447.0,0.150495]
[1721407124724,0.00392476,66461.0,66447.0,0.150495]
[1721407124929,0.023,66460.0,66447.0,0.150495]
[1721407125126,0.00392476,66459.0,66452.0,0.009]
[1721407125589,0.1851,66457.0,66452.0,0.009]
[1721407125706,0.109694,66456.0,66452.0,0.009]
[1721407125903,0.023,66455.0,66452.0,0.009]
[1721407126153,0.002794,66454.0,66452.0,0.009]
[1721407126878,0.1069,66456.0,66452.0,0.009]
[1721407127135,0.0782,66457.0,66454.0,0.07717479]
[1721407127307,0.002,66455.0,66454.0,0.15048]
[1721407127461,0.002,66455.0,66454.0,0.45144]
[1721407127661,0.002,66455.0,66454.0,0.90678174]
[1721407127885,0.001,66462.0,66458.0,0.15047]
[1721407128232,0.1069,66468.0,66454.0,0.34308174]
[1721407128444,0.002794,66467.0,66459.0,0.300933]
[1721407128628,0.00208158,66467.0,66463.0,0.150459]
[1721407128828,0.1069,66468.0,66464.0,0.00071242]
[1721407129027,0.1069,66468.0,66460.0,0.15117742]
[1721407129376,0.1069,66468.0,66461.0,0.150462]
[1721407129504,0.1069,66468.0,66462.0,0.15117342]
[1721407129706,0.004,66467.0,66462.0,0.00071242]
[1721407129916,0.004,66467.0,66461.0,0.150463]
[1721407130121,0.004,66467.0,66462.0,0.00071242]
[1721407130844,0.00208158,66466.0,66460.0,0.00071242]
[1721407131025,0.00292476,66465.0,66456.0,0.00071242]
[1721407131210,0.0844,66462.0,66442.0,0.0803]
[1721407131416,0.00500634,66461.0,66446.0,0.150497]
[1721407131652,0.023,66460.0,66446.0,0.150497]
[1721407131879,0.00208158,66459.0,66446.0,0.150497]
[1721407132084,0.00500634,66459.0,66447.0,0.00071242]
[1721407132295,0.1023,66458.0,66447.0,0.00071242]
[1721407132432,0.00208158,66457.0,66444.0,0.15121442]
[1721407132636,0.00208158,66457.0,66446.0,0.154497]
[1721407132839,0.00208158,66457.0,66447.0,0.00071242]
[1721407133032,0.00292476,66456.0,66445.0,0.00071242]
[1721407133237,0.00208158,66455.0,66446.0,0.006]
[1721407133518,0.10522476,66458.0,66446.0,0.006]
[1721407133519,0.00208158,66457.0,66446.0,0.006]
[1721407134105,0.00308158,66457.0,66448.0,0.150492]
[1721407134256,0.001,66457.0,66449.0,0.00071242]
[1721407134468,0.1023,66458.0,66449.0,0.00071242]
[1721407134710,0.023,66460.0,66444.0,0.008]
[1721407134711,0.1016,66455.0,66444.0,0.008]
[1721407134903,0.1843,66451.0,66431.0,0.152532]
[1721407135106,0.1843,66451.0,66435.0,0.46304871]
[1721407135107,0.02871876,66450.0,66435.0,0.46304871]
[1721407135303,0.02871876,66450.0,66431.0,0.002]
[1721407135304,0.02871876,66450.0,66446.0,0.001]
[1721407135488,0.02871876,66450.0,66448.0,0.001]
[1721407135894,0.02871876,66450.0,66449.0,0.000924]
[1721407136085,0.02871876,66450.0,66432.0,0.150529]
[1721407136291,0.06545881,66450.0,66432.0,0.150529]
[1721407136758,0.02871876,66450.0,66433.0,0.00301026]
[1721407136959,0.02871876,66450.0,66431.0,0.304063]
[1721407136960,0.02871876,66450.0,66431.0,0.003]
[1721407137247,0.181,66449.0,66431.0,0.004]
[1721407137390,0.02871876,66448.0,66431.0,0.003]
[1721407137591,0.181,66447.0,66431.0,0.003]
[1721407137796,0.1601005,66446.0,66432.0,0.001]
[1721407138089,0.204,66445.0,66432.0,0.001]